fUST/lending_fUST_20260528
["ID","MTS","AMOUNT","RATE_DAILY","PERIOD"]
[423160088,1779897672000,-300.0,7.501e-05,2]
[423160090,1779897689000,-5000.0,8.043e-05,2]
[423160092,1779897706000,-300.0,8.123e-05,2]
[423160093,1779897723000,-5000.0,8.124e-05,2]
[423160094,1779897739000,-217.78790446,8.248e-05,2]
[423160097,1779897756000,200.0,0.00019173,120]
[423160096,1779897756000,-500.0,8.541e-05,2]
[423160098,1779897773000,-500.0,8.541e-05,2]
[423160123,1779898170000,200.0,0.00018801,120]
[423160159,1779898232000,-543.13,8.528e-05,2]
[423160160,1779898232000,-500.0,8.528e-05,2]
[423160165,1779898232000,-500.0,8.528e-05,2]
[423160163,1779898232000,-500.0,8.528e-05,2]
[423160161,1779898232000,-500.0,8.528e-05,2]
[423160166,1779898232000,-500.0,8.528e-05,2]
[423160162,1779898232000,-500.0,8.528e-05,2]
[423160156,1779898232000,-500.0,8.528e-05,2]
[423160169,1779898232000,-511.71992638,8.528e-05,2]
[423160167,1779898232000,-500.0,8.528e-05,2]
[423160164,1779898232000,-500.0,8.528e-05,2]
[423160157,1779898232000,-500.0,8.528e-05,2]
[423160149,1779898232000,-300.0,8.526e-05,2]
[423160153,1779898232000,-500.0,8.528e-05,2]
[423160151,1779898232000,-500.0,8.528e-05,2]
[423160171,1779898232000,-511.71992638,8.528e-05,2]
[423160150,1779898232000,-500.0,8.528e-05,2]
[423160144,1779898232000,-213.43214637,8.329e-05,2]
[423160145,1779898232000,-621.58597374,8.404e-05,2]
[423160148,1779898232000,-107.22843749,8.504e-05,2]
[423160147,1779898232000,-1074.92857597,8.504e-05,2]
[423160146,1779898232000,-2157.376318,8.421e-05,2]
[423160143,1779898232000,-1332.54225289,8.254e-05,2]
[423160142,1779898232000,-487.54988389,8.254e-05,2]
[423160141,1779898232000,-3179.90786322,8.254e-05,2]
[423160155,1779898232000,-500.0,8.528e-05,2]
[423160181,1779898232000,-511.71992638,8.528e-05,2]
[423160158,1779898232000,-500.0,8.528e-05,2]
[423160183,1779898232000,-511.71992638,8.528e-05,2]
[423160185,1779898232000,-511.71992638,8.528e-05,2]
[423160206,1779898232000,-42527.00878427,8.529e-05,2]
[423160205,1779898232000,-939.85552953,8.528e-05,2]
[423160202,1779898232000,-544.28392171,8.528e-05,2]
[423160203,1779898232000,-544.28392171,8.528e-05,2]
[423160199,1779898232000,-544.28392171,8.528e-05,2]
[423160200,1779898232000,-544.28392171,8.528e-05,2]
[423160201,1779898232000,-544.28392171,8.528e-05,2]
[423160192,1779898232000,-511.71992638,8.528e-05,2]
[423160196,1779898232000,-511.71992638,8.528e-05,2]
[423160198,1779898232000,-544.28392171,8.528e-05,2]
[423160197,1779898232000,-544.28392171,8.528e-05,2]
[423160194,1779898232000,-511.71992638,8.528e-05,2]
[423160195,1779898232000,-511.71992638,8.528e-05,2]
[423160176,1779898232000,-511.71992638,8.528e-05,2]
[423160204,1779898232000,-544.28392171,8.528e-05,2]
[423160191,1779898232000,-511.71992638,8.528e-05,2]
[423160190,1779898232000,-511.71992638,8.528e-05,2]
[423160188,1779898232000,-511.71992638,8.528e-05,2]
[423160186,1779898232000,-511.71992638,8.528e-05,2]
[423160177,1779898232000,-511.71992638,8.528e-05,2]
[423160179,1779898232000,-511.71992638,8.528e-05,2]
[423160193,1779898232000,-511.71992638,8.528e-05,2]
[423160174,1779898232000,-511.71992638,8.528e-05,2]
[423160172,1779898232000,-511.71992638,8.528e-05,2]
[423160170,1779898232000,-291.11209642,8.528e-05,2]
[423160184,1779898232000,-511.71992638,8.528e-05,2]
[423160262,1779898238000,-1134.089456,8.443e-05,2]
[423160265,1779898238000,-3865.910544,8.443e-05,2]
[423160266,1779898238000,-129.67695631,8.529e-05,2]
[423160276,1779898238000,-26338.82611006,8.529e-05,2]
[423160292,1779898238000,-15078.98942412,8.529e-05,2]
[423160288,1779898238000,-31068.88477096,8.529e-05,2]
[423160311,1779898238000,-2014.91020796,8.529e-05,2]
[423160313,1779898238000,-1224.85871026,8.529e-05,2]
[423160290,1779898238000,-647.81,8.529e-05,2]
[423160598,1779898240000,-4786.12112569,8.529e-05,2]
[423160596,1779898240000,-7100.60916339,8.529e-05,2]
[423160619,1779898241000,-1111.25679593,8.529e-05,2]
[423160628,1779898241000,-13148.26109639,8.529e-05,2]
[423160943,1779898243000,-500.0,8.528e-05,2]
[423160944,1779898243000,-8876.999065,8.529e-05,2]
[423160982,1779898244000,-565.45,8.529e-05,2]
[423160986,1779898244000,-1187.34,8.529e-05,2]
[423160984,1779898244000,-443.0,8.529e-05,2]
[423160977,1779898244000,-274.508,8.529e-05,2]
[423160991,1779898244000,-2160.0,8.529e-05,2]
[423160979,1779898244000,-1948.3797128,8.529e-05,2]
[423161369,1779898246000,-500.0,8.542e-05,2]
[423161338,1779898246000,-14816.93723149,8.529e-05,2]
[423161340,1779898246000,-526.67274873,8.54e-05,2]
[423161342,1779898246000,-500.0,8.542e-05,2]
[423161350,1779898246000,-500.0,8.542e-05,2]
[423161344,1779898246000,-500.0,8.542e-05,2]
[423161346,1779898246000,-500.0,8.542e-05,2]
[423161348,1779898246000,-500.0,8.542e-05,2]
[423161354,1779898246000,-500.0,8.542e-05,2]
[423161356,1779898246000,-380.51584571,8.542e-05,2]
[423161352,1779898246000,-500.0,8.542e-05,2]
[423161376,1779898246000,-500.0,8.542e-05,2]
[423161366,1779898246000,-500.0,8.542e-05,2]
[423161362,1779898246000,-500.0,8.542e-05,2]
[423161375,1779898246000,-196.59895041,8.542e-05,2]
[423161374,1779898246000,-500.0,8.542e-05,2]
[423161371,1779898246000,-500.0,8.542e-05,2]
[423161372,1779898246000,-500.0,8.542e-05,2]
[423161373,1779898246000,-500.0,8.542e-05,2]
[423161364,1779898246000,-500.0,8.542e-05,2]
[423161368,1779898246000,-500.0,8.542e-05,2]
[423161360,1779898246000,-514.91,8.542e-05,2]
[423161358,1779898246000,-500.0,8.542e-05,2]
[423161370,1779898246000,-500.0,8.542e-05,2]
[423161436,1779898247000,-716.5707,8.542e-05,2]
[423161441,1779898247000,-500.0,8.542e-05,2]
[423161430,1779898247000,-500.0,8.542e-05,2]
[423161442,1779898247000,-500.0,8.542e-05,2]
[423161443,1779898247000,-500.0,8.542e-05,2]
[423161428,1779898247000,-500.0,8.542e-05,2]
[423161434,1779898247000,-500.0,8.542e-05,2]
[423161438,1779898247000,-500.0,8.542e-05,2]
[423161432,1779898247000,-500.0,8.542e-05,2]
[423161444,1779898247000,-500.0,8.542e-05,2]
[423161424,1779898247000,-500.0,8.542e-05,2]
[423161440,1779898247000,-500.0,8.542e-05,2]
[423161445,1779898247000,-500.0,8.542e-05,2]
[423161449,1779898247000,-501.73366197,8.542e-05,2]
[423161447,1779898247000,-532.42973658,8.542e-05,2]
[423161446,1779898247000,-500.0,8.542e-05,2]
[423161450,1779898247000,-501.49570361,8.542e-05,2]
[423161451,1779898247000,-501.84995452,8.542e-05,2]
[423161426,1779898247000,-500.0,8.542e-05,2]
[423161452,1779898247000,-500.0,8.542e-05,2]
[423161453,1779898247000,-500.0,8.542e-05,2]
[423161455,1779898247000,-500.0,8.542e-05,2]
[423161457,1779898247000,-502.11164909,8.542e-05,2]
[423161468,1779898247000,-500.0,8.542e-05,2]
[423161459,1779898247000,-500.0,8.542e-05,2]
[423161464,1779898247000,-502.08940335,8.542e-05,2]
[423161463,1779898247000,-440.36431708,8.542e-05,2]
[423161461,1779898247000,-500.0,8.542e-05,2]
[423161448,1779898247000,-500.0,8.542e-05,2]
[423161410,1779898247000,-500.0,8.542e-05,2]
[423161408,1779898247000,-500.0,8.542e-05,2]
[423161422,1779898247000,-500.0,8.542e-05,2]
[423161466,1779898247000,-2939.61,8.542e-05,2]
[423161379,1779898247000,-500.0,8.542e-05,2]
[423161377,1779898247000,-500.0,8.542e-05,2]
[423161385,1779898247000,-500.0,8.542e-05,2]
[423161384,1779898247000,-169.42905729,8.542e-05,2]
[423161383,1779898247000,-500.0,8.542e-05,2]
[423161380,1779898247000,-500.0,8.542e-05,2]
[423161381,1779898247000,-648.39980519,8.542e-05,2]
[423161378,1779898247000,-500.0,8.542e-05,2]
[423161382,1779898247000,-400.0,8.542e-05,2]
[423161387,1779898247000,-500.0,8.542e-05,2]
[423161397,1779898247000,-500.0,8.542e-05,2]
[423161399,1779898247000,-500.0,8.542e-05,2]
[423161401,1779898247000,-500.0,8.542e-05,2]
[423161390,1779898247000,-500.0,8.542e-05,2]
[423161389,1779898247000,-500.0,8.542e-05,2]
[423161388,1779898247000,-500.0,8.542e-05,2]
[423161386,1779898247000,-500.0,8.542e-05,2]
[423161391,1779898247000,-500.0,8.542e-05,2]
[423161393,1779898247000,-500.0,8.542e-05,2]
[423161394,1779898247000,-388.25621613,8.542e-05,2]
[423161395,1779898247000,-500.0,8.542e-05,2]
[423161402,1779898247000,-907.99,8.542e-05,2]
[423161404,1779898247000,-500.0,8.542e-05,2]
[423161414,1779898247000,-500.0,8.542e-05,2]
[423161406,1779898247000,-500.0,8.542e-05,2]
[423161420,1779898247000,-310.9505734,8.542e-05,2]
[423161412,1779898247000,-500.0,8.542e-05,2]
[423161416,1779898247000,-500.0,8.542e-05,2]
[423161418,1779898247000,-500.0,8.542e-05,2]
[423161472,1779898247000,-500.0,8.542e-05,2]
[423161392,1779898247000,-500.0,8.542e-05,2]
[423161489,1779898247000,-500.0,8.542e-05,2]
[423161540,1779898247000,-500.0,8.802e-05,2]
[423161542,1779898247000,-500.0,8.802e-05,2]
[423161546,1779898247000,-500.0,8.802e-05,2]
[423161548,1779898247000,-500.0,8.802e-05,2]
[423161544,1779898247000,-500.0,8.802e-05,2]
[423161552,1779898247000,-500.0,8.802e-05,2]
[423161553,1779898247000,-1371.73143963,8.804e-05,2]
[423161550,1779898247000,-500.0,8.802e-05,2]
[423161592,1779898247000,-500.0,8.816e-05,2]
[423161555,1779898247000,-500.0,8.816e-05,2]
[423161557,1779898247000,-500.0,8.816e-05,2]
[423161539,1779898247000,-500.0,8.802e-05,2]
[423161559,1779898247000,-500.0,8.816e-05,2]
[423161561,1779898247000,-500.0,8.816e-05,2]
[423161562,1779898247000,-500.0,8.816e-05,2]
[423161564,1779898247000,-500.0,8.816e-05,2]
[423161576,1779898247000,-500.0,8.816e-05,2]
[423161579,1779898247000,-623.60612776,8.816e-05,2]
[423161578,1779898247000,-500.0,8.816e-05,2]
[423161568,1779898247000,-500.0,8.816e-05,2]
[423161566,1779898247000,-500.0,8.816e-05,2]
[423161570,1779898247000,-500.0,8.816e-05,2]
[423161586,1779898247000,-500.0,8.816e-05,2]
[423161585,1779898247000,-500.0,8.816e-05,2]
[423161572,1779898247000,-500.0,8.816e-05,2]
[423161583,1779898247000,-500.0,8.816e-05,2]
[423161574,1779898247000,-500.0,8.816e-05,2]
[423161581,1779898247000,-625.50364375,8.816e-05,2]
[423161590,1779898247000,-500.0,8.816e-05,2]
[423161535,1779898247000,-302.22320771,8.802e-05,2]
[423161537,1779898247000,-500.0,8.802e-05,2]
[423161588,1779898247000,-500.0,8.816e-05,2]
[423161522,1779898247000,-1276.94422649,8.704e-05,2]
[423161517,1779898247000,-500.0,8.629e-05,2]
[423161474,1779898247000,-500.0,8.542e-05,2]
[423161478,1779898247000,-500.0,8.542e-05,2]
[423161476,1779898247000,-500.0,8.542e-05,2]
[423161490,1779898247000,-500.0,8.542e-05,2]
[423161492,1779898247000,-500.0,8.542e-05,2]
[423161483,1779898247000,-364.01258467,8.542e-05,2]
[423161470,1779898247000,-500.0,8.542e-05,2]
[423161487,1779898247000,-500.0,8.542e-05,2]
[423161481,1779898247000,-500.0,8.542e-05,2]
[423161485,1779898247000,-500.0,8.542e-05,2]
[423161494,1779898247000,-500.0,8.542e-05,2]
[423161507,1779898247000,-501.88689287,8.629e-05,2]
[423161505,1779898247000,-501.47083517,8.629e-05,2]
[423161508,1779898247000,-500.0,8.629e-05,2]
[423161479,1779898247000,-501.17298738,8.542e-05,2]
[423161496,1779898247000,-500.0,8.542e-05,2]
[423161497,1779898247000,-500.0,8.542e-05,2]
[423161519,1779898247000,-500.0,8.629e-05,2]
[423161521,1779898247000,-500.0,8.629e-05,2]
[423161533,1779898247000,-500.0,8.802e-05,2]
[423161531,1779898247000,-500.0,8.802e-05,2]
[423161515,1779898247000,-500.0,8.629e-05,2]
[423161528,1779898247000,-500.0,8.802e-05,2]
[423161530,1779898247000,-500.0,8.802e-05,2]
[423161526,1779898247000,-500.0,8.802e-05,2]
[423161524,1779898247000,-526.67274869,8.746e-05,2]
[423161503,1779898247000,-500.0,8.629e-05,2]
[423161499,1779898247000,-500.0,8.542e-05,2]
[423161501,1779898247000,-1252.88483943,8.604e-05,2]
[423161513,1779898247000,-500.0,8.629e-05,2]
[423161671,1779898248000,-148.7319494,8.816e-05,2]
[423161674,1779898248000,-351.2680506,8.816e-05,2]
[423161680,1779898248000,-500.0,8.816e-05,2]
[423161685,1779898248000,-501.41082154,8.816e-05,2]
[423161669,1779898248000,-500.0,8.816e-05,2]
[423161656,1779898248000,-505.7437241,8.816e-05,2]
[423161667,1779898248000,-500.0,8.816e-05,2]
[423161661,1779898248000,-500.0,8.816e-05,2]
[423161647,1779898248000,-500.0,8.816e-05,2]
[423161663,1779898248000,-500.0,8.816e-05,2]
[423161650,1779898248000,-716.5707,8.816e-05,2]
[423161665,1779898248000,-502.0574467,8.816e-05,2]
[423161682,1779898248000,-500.0,8.816e-05,2]
[423161689,1779898248000,-500.0,8.816e-05,2]
[423161687,1779898248000,-500.0,8.816e-05,2]
[423161676,1779898248000,-500.0,8.816e-05,2]
[423161678,1779898248000,-2939.61,8.816e-05,2]
[423161693,1779898248000,-500.0,8.816e-05,2]
[423161658,1779898248000,-500.0,8.816e-05,2]
[423161691,1779898248000,-500.0,8.816e-05,2]
[423161695,1779898248000,-500.0,8.816e-05,2]
[423161697,1779898248000,-500.0,8.816e-05,2]
[423161706,1779898248000,-500.0,8.816e-05,2]
[423161700,1779898248000,-500.0,8.816e-05,2]
[423161708,1779898248000,-500.0,8.816e-05,2]
[423161702,1779898248000,-500.0,8.816e-05,2]
[423161699,1779898248000,-500.0,8.816e-05,2]
[423161712,1779898248000,-500.0,8.903e-05,2]
[423161684,1779898248000,-500.0,8.816e-05,2]
[423161645,1779898248000,-500.0,8.816e-05,2]
[423161641,1779898248000,-500.0,8.816e-05,2]
[423161648,1779898248000,-500.0,8.816e-05,2]
[423161710,1779898248000,-500.0,8.903e-05,2]
[423161602,1779898248000,-500.0,8.816e-05,2]
[423161603,1779898248000,-500.0,8.816e-05,2]
[423161607,1779898248000,-500.0,8.816e-05,2]
[423161600,1779898248000,-500.0,8.816e-05,2]
[423161598,1779898248000,-500.0,8.816e-05,2]
[423161594,1779898248000,-500.0,8.816e-05,2]
[423161609,1779898248000,-500.0,8.816e-05,2]
[423161605,1779898248000,-500.0,8.816e-05,2]
[423161596,1779898248000,-500.0,8.816e-05,2]
[423161613,1779898248000,-602.76,8.816e-05,2]
[423161611,1779898248000,-500.0,8.816e-05,2]
[423161615,1779898248000,-500.0,8.816e-05,2]
[423161659,1779898248000,-478.0323533,8.816e-05,2]
[423161617,1779898248000,-500.0,8.816e-05,2]
[423161621,1779898248000,-907.99,8.816e-05,2]
[423161630,1779898248000,-358.19626169,8.816e-05,2]
[423161632,1779898248000,-500.0,8.816e-05,2]
[423161628,1779898248000,-500.0,8.816e-05,2]
[423161624,1779898248000,-500.0,8.816e-05,2]
[423161636,1779898248000,-500.0,8.816e-05,2]
[423161634,1779898248000,-500.0,8.816e-05,2]
[423161626,1779898248000,-500.0,8.816e-05,2]
[423161637,1779898248000,-500.0,8.816e-05,2]
[423161639,1779898248000,-500.0,8.816e-05,2]
[423161643,1779898248000,-501.71805935,8.816e-05,2]
[423161654,1779898248000,-500.0,8.816e-05,2]
[423161652,1779898248000,-500.0,8.816e-05,2]
[423161619,1779898248000,-500.0,8.816e-05,2]
[423161622,1779898248000,-500.0,8.816e-05,2]
[423161704,1779898248000,-500.0,8.816e-05,2]
[423161716,1779898248000,-500.0,8.903e-05,2]
[423161790,1779898248000,-500.0,9.09e-05,2]
[423161788,1779898248000,-334.3,9.09e-05,2]
[423161792,1779898248000,-500.0,9.09e-05,2]
[423161794,1779898248000,-500.0,9.09e-05,2]
[423161798,1779898248000,-500.0,9.09e-05,2]
[423161808,1779898248000,-907.99,9.09e-05,2]
[423161800,1779898248000,-500.0,9.09e-05,2]
[423161810,1779898248000,-500.0,9.09e-05,2]
[423161812,1779898248000,-500.0,9.09e-05,2]
[423161814,1779898248000,-500.0,9.09e-05,2]
[423161806,1779898248000,-500.0,9.09e-05,2]
[423161796,1779898248000,-500.0,9.09e-05,2]
[423161816,1779898248000,-500.0,9.09e-05,2]
[423161820,1779898248000,-500.0,9.09e-05,2]
[423161802,1779898248000,-500.0,9.09e-05,2]
[423161804,1779898248000,-500.0,9.09e-05,2]
[423161822,1779898248000,-500.0,9.09e-05,2]
[423161834,1779898248000,-500.0,9.09e-05,2]
[423161832,1779898248000,-500.0,9.09e-05,2]
[423161836,1779898248000,-500.0,9.09e-05,2]
[423161840,1779898248000,-500.0,9.09e-05,2]
[423161838,1779898248000,-716.5707,9.09e-05,2]
[423161824,1779898248000,-500.0,9.09e-05,2]
[423161826,1779898248000,-500.0,9.09e-05,2]
[423161830,1779898248000,-611.12,9.09e-05,2]
[423161828,1779898248000,-500.0,9.09e-05,2]
[423161842,1779898248000,-501.20120435,9.09e-05,2]
[423161844,1779898248000,-500.0,9.09e-05,2]
[423161714,1779898248000,-500.0,8.903e-05,2]
[423161786,1779898248000,-500.0,9.09e-05,2]
[423161776,1779898248000,-560.81,9.09e-05,2]
[423161818,1779898248000,-500.0,9.09e-05,2]
[423161784,1779898248000,-500.0,9.09e-05,2]
[423161719,1779898248000,-500.0,8.903e-05,2]
[423161778,1779898248000,-500.0,9.09e-05,2]
[423161718,1779898248000,-500.0,8.903e-05,2]
[423161723,1779898248000,-1552.76809226,8.908e-05,2]
[423161735,1779898248000,-500.0,9.076e-05,2]
[423161721,1779898248000,-1466.51865276,8.904e-05,2]
[423161727,1779898248000,-267.0,9.076e-05,2]
[423161729,1779898248000,-500.0,9.076e-05,2]
[423161739,1779898248000,-500.0,9.076e-05,2]
[423161736,1779898248000,-643.43,9.076e-05,2]
[423161741,1779898248000,-500.0,9.076e-05,2]
[423161742,1779898248000,-500.0,9.076e-05,2]
[423161744,1779898248000,-561.83,9.076e-05,2]
[423161755,1779898248000,-500.0,9.09e-05,2]
[423161759,1779898248000,-463.77944852,9.09e-05,2]
[423161725,1779898248000,-526.67274869,8.952e-05,2]
[423161774,1779898248000,-614.76116514,9.09e-05,2]
[423161782,1779898248000,-500.0,9.09e-05,2]
[423161757,1779898248000,-361.07942581,9.09e-05,2]
[423161780,1779898248000,-500.0,9.09e-05,2]
[423161772,1779898248000,-235.72,9.09e-05,2]
[423161769,1779898248000,-500.0,9.09e-05,2]
[423161753,1779898248000,-500.0,9.09e-05,2]
[423161767,1779898248000,-458.45,9.09e-05,2]
[423161763,1779898248000,-500.0,9.09e-05,2]
[423161751,1779898248000,-500.0,9.076e-05,2]
[423161749,1779898248000,-487.11127858,9.076e-05,2]
[423161747,1779898248000,-500.0,9.076e-05,2]
[423161761,1779898248000,-500.0,9.09e-05,2]
[423161765,1779898248000,-500.0,9.09e-05,2]
[423161927,1779898249000,-500.0,9.364e-05,2]
[423161938,1779898249000,-500.0,9.364e-05,2]
[423161936,1779898249000,-500.0,9.364e-05,2]
[423161934,1779898249000,-526.61496429,9.364e-05,2]
[423161932,1779898249000,-500.0,9.364e-05,2]
[423161929,1779898249000,-526.67274869,9.364e-05,2]
[423161915,1779898249000,-500.0,9.364e-05,2]
[423161917,1779898249000,-314.64553126,9.364e-05,2]
[423161923,1779898249000,-500.0,9.364e-05,2]
[423161919,1779898249000,-500.0,9.364e-05,2]
[423161913,1779898249000,-500.0,9.364e-05,2]
[423161940,1779898249000,-500.0,9.364e-05,2]
[423161920,1779898249000,-500.0,9.364e-05,2]
[423161931,1779898249000,-500.0,9.364e-05,2]
[423161961,1779898249000,-500.0,9.364e-05,2]
[423161950,1779898249000,-500.0,9.364e-05,2]
[423161942,1779898249000,-561.0,9.364e-05,2]
[423161952,1779898249000,-500.0,9.364e-05,2]
[423161948,1779898249000,-500.0,9.364e-05,2]
[423161946,1779898249000,-500.0,9.364e-05,2]
[423161954,1779898249000,-646.10068089,9.364e-05,2]
[423161956,1779898249000,-500.0,9.364e-05,2]
[423161969,1779898249000,-500.0,9.364e-05,2]
[423161967,1779898249000,-2939.61,9.364e-05,2]
[423161973,1779898249000,-500.0,9.364e-05,2]
[423161971,1779898249000,-500.0,9.364e-05,2]
[423161958,1779898249000,-716.5707,9.364e-05,2]
[423161960,1779898249000,-500.0,9.364e-05,2]
[423161903,1779898249000,-500.0,9.35e-05,2]
[423161944,1779898249000,-907.99,9.364e-05,2]
[423161925,1779898249000,-500.0,9.364e-05,2]
[423161846,1779898249000,-500.0,9.09e-05,2]
[423161911,1779898249000,-500.0,9.364e-05,2]
[423161975,1779898249000,-500.0,9.364e-05,2]
[423161848,1779898249000,-500.0,9.09e-05,2]
[423161854,1779898249000,-2939.61,9.09e-05,2]
[423161850,1779898249000,-637.63239537,9.09e-05,2]
[423161858,1779898249000,-500.0,9.09e-05,2]
[423161856,1779898249000,-500.0,9.09e-05,2]
[423161852,1779898249000,-500.0,9.09e-05,2]
[423161860,1779898249000,-500.0,9.09e-05,2]
[423161862,1779898249000,-500.0,9.09e-05,2]
[423161864,1779898249000,-500.0,9.09e-05,2]
[423161866,1779898249000,-500.0,9.09e-05,2]
[423161868,1779898249000,-500.0,9.09e-05,2]
[423161870,1779898249000,-500.0,9.09e-05,2]
[423161872,1779898249000,-500.0,9.09e-05,2]
[423161905,1779898249000,-500.0,9.35e-05,2]
[423161874,1779898249000,-500.0,9.09e-05,2]
[423161886,1779898249000,-500.0,9.177e-05,2]
[423161890,1779898249000,-502.30009876,9.177e-05,2]
[423161888,1779898249000,-481.48564224,9.177e-05,2]
[423161892,1779898249000,-500.0,9.177e-05,2]
[423161894,1779898249000,-500.0,9.177e-05,2]
[423161896,1779898249000,-500.0,9.177e-05,2]
[423161880,1779898249000,-500.0,9.09e-05,2]
[423161884,1779898249000,-526.67274869,9.158e-05,2]
[423161878,1779898249000,-500.0,9.09e-05,2]
[423161882,1779898249000,-10000.0,9.123e-05,2]
[423161898,1779898249000,-500.0,9.35e-05,2]
[423161900,1779898249000,-527.4,9.35e-05,2]
[423161906,1779898249000,-500.0,9.35e-05,2]
[423161908,1779898249000,-500.0,9.364e-05,2]
[423161876,1779898249000,-500.0,9.09e-05,2]
[423161963,1779898249000,-500.0,9.364e-05,2]
[423162021,1779898249000,-500.0,9.527e-05,2]
[423161977,1779898249000,-487.72,9.364e-05,2]
[423162036,1779898249000,-500.0,9.527e-05,2]
[423162040,1779898249000,-1718.79031607,9.56e-05,2]
[423162038,1779898249000,-500.0,9.527e-05,2]
[423162042,1779898249000,-151.0,9.589e-05,2]
[423162054,1779898249000,-500.0,9.627e-05,2]
[423162056,1779898249000,-181.34516176,9.627e-05,2]
[423162058,1779898249000,-151.0,9.627e-05,2]
[423162061,1779898249000,-151.0,9.627e-05,2]
[423162063,1779898249000,-151.0,9.627e-05,2]
[423162065,1779898249000,-500.0,9.638e-05,2]
[423162067,1779898249000,-553.39,9.638e-05,2]
[423162069,1779898249000,-500.0,9.638e-05,2]
[423162073,1779898249000,-422.48,9.638e-05,2]
[423162071,1779898249000,-572.45,9.638e-05,2]
[423162078,1779898249000,-500.0,9.638e-05,2]
[423162076,1779898249000,-500.0,9.638e-05,2]
[423162080,1779898249000,-500.0,9.638e-05,2]
[423162082,1779898249000,-907.99,9.638e-05,2]
[423162084,1779898249000,-500.0,9.638e-05,2]
[423162086,1779898249000,-500.0,9.638e-05,2]
[423162099,1779898249000,-2939.61,9.638e-05,2]
[423162101,1779898249000,-500.0,9.638e-05,2]
[423162105,1779898249000,-500.0,9.638e-05,2]
[423162095,1779898249000,-500.0,9.638e-05,2]
[423162090,1779898249000,-716.5707,9.638e-05,2]
[423162103,1779898249000,-500.0,9.638e-05,2]
[423162088,1779898249000,-408.27887307,9.638e-05,2]
[423162092,1779898249000,-500.0,9.638e-05,2]
[423162094,1779898249000,-500.0,9.638e-05,2]
[423162050,1779898249000,-500.0,9.624e-05,2]
[423162052,1779898249000,-500.0,9.627e-05,2]
[423161965,1779898249000,-500.0,9.364e-05,2]
[423162033,1779898249000,-500.0,9.527e-05,2]
[423162048,1779898249000,-500.0,9.624e-05,2]
[423161979,1779898249000,-500.0,9.364e-05,2]
[423161980,1779898249000,-500.0,9.364e-05,2]
[423161982,1779898249000,-500.0,9.364e-05,2]
[423161992,1779898249000,-500.0,9.364e-05,2]
[423161989,1779898249000,-500.0,9.364e-05,2]
[423161987,1779898249000,-500.0,9.364e-05,2]
[423161996,1779898249000,-500.0,9.451e-05,2]
[423161990,1779898249000,-500.0,9.364e-05,2]
[423161994,1779898249000,-420.0,9.379e-05,2]
[423162000,1779898249000,-500.0,9.451e-05,2]
[423161998,1779898249000,-500.0,9.451e-05,2]
[423162002,1779898249000,-500.0,9.451e-05,2]
[423162004,1779898249000,-500.0,9.527e-05,2]
[423162008,1779898249000,-500.0,9.527e-05,2]
[423161985,1779898249000,-500.0,9.364e-05,2]
[423162006,1779898249000,-500.0,9.527e-05,2]
[423162009,1779898249000,-500.0,9.527e-05,2]
[423162046,1779898249000,-500.0,9.624e-05,2]
[423162032,1779898249000,-500.0,9.527e-05,2]
[423162030,1779898249000,-500.0,9.527e-05,2]
[423162097,1779898249000,-500.0,9.638e-05,2]
[423162023,1779898249000,-500.0,9.527e-05,2]
[423162013,1779898249000,-500.0,9.527e-05,2]
[423162044,1779898249000,-151.413583,9.589e-05,2]
[423162025,1779898249000,-500.0,9.527e-05,2]
[423162011,1779898249000,-500.0,9.527e-05,2]
[423162017,1779898249000,-500.0,9.527e-05,2]
[423162027,1779898249000,-500.0,9.527e-05,2]
[423162019,1779898249000,-500.0,9.527e-05,2]
[423162015,1779898249000,-500.0,9.527e-05,2]
[423162157,1779898250000,-500.0,9.801e-05,2]
[423162169,1779898250000,-503.89675225,9.801e-05,2]
[423162171,1779898250000,-500.0,9.801e-05,2]